[Event "Titled Tuesday Blitz March 29 Early 2022"]
[White "Mihailidis, Anastasios"]
[Black "Shandrygin, Nikita"]
[WhiteFideId "4205588"]
[BlackFideId "24198668"]
[WhiteElo "2312"]
[BlackElo "2324"]
[Result "0-1"]
[Round "06"]
[TimeControl "180+1"]
[Date "2022.03.30"]
[WhiteClock "0:00:35"]
[BlackClock "0:02:06"]

1. e4 {[%clk 0:02:55]}  c5 {[%clk 0:02:59]} 2. Nf3 {[%clk 0:02:55]}  e6 {[%clk 0:03:00]} 3. c4 {[%clk 0:02:55]}  Nc6 {[%clk 0:02:58]} 4. Nc3 {[%clk 0:02:55]}  g5 {[%clk 0:02:59]} 5. d4 {[%clk 0:02:54]}  g4 {[%clk 0:02:57]} 6. d5 {[%clk 0:02:40]}  gxf3 {[%clk 0:02:56]} 7. dxc6 {[%clk 0:02:39]}  fxg2 {[%clk 0:02:54]} 8. cxd7+ {[%clk 0:02:39]}  Qxd7 {[%clk 0:02:55]} 9. Qxd7+ {[%clk 0:02:39]}  Bxd7 {[%clk 0:02:56]} 10. Bxg2 {[%clk 0:02:39]}  Bc6 {[%clk 0:02:52]} 11. Be3 {[%clk 0:02:37]}  Nf6 {[%clk 0:02:50]} 12. O-O-O {[%clk 0:02:36]}  Ng4 {[%clk 0:02:50]} 13. Kb1 {[%clk 0:02:22]}  Nxe3 {[%clk 0:02:50]} 14. fxe3 {[%clk 0:02:22]}  Bh6 {[%clk 0:02:51]} 15. Rhe1 {[%clk 0:02:17]}  Ke7 {[%clk 0:02:51]} 16. Bf3 {[%clk 0:02:07]}  Bg7 {[%clk 0:02:47]} 17. Kc2 {[%clk 0:02:05]}  Be5 {[%clk 0:02:46]} 18. h3 {[%clk 0:02:04]}  Rad8 {[%clk 0:02:45]} 19. Rxd8 {[%clk 0:02:01]}  Rxd8 {[%clk 0:02:46]} 20. Rd1 {[%clk 0:01:59]}  Rxd1 {[%clk 0:02:46]} 21. Nxd1 {[%clk 0:01:57]}  Kf6 {[%clk 0:02:45]} 22. Nf2 {[%clk 0:01:54]}  Kg5 {[%clk 0:02:45]} 23. Ng4 {[%clk 0:01:54]}  Bg7 {[%clk 0:02:45]} 24. Bh1 {[%clk 0:01:45]}  Kh4 {[%clk 0:02:43]} 25. Nf2 {[%clk 0:01:45]}  Kg3 {[%clk 0:02:41]} 26. Nd3 {[%clk 0:01:44]}  Kxh3 {[%clk 0:02:41]} 27. Nxc5 {[%clk 0:01:44]}  Kh2 {[%clk 0:02:37]} 28. Bf3 {[%clk 0:01:43]}  Kg3 {[%clk 0:02:38]} 29. Bh1 {[%clk 0:01:43]}  h5 {[%clk 0:02:37]} 30. b4 {[%clk 0:01:42]}  Bf8 {[%clk 0:02:24]} 31. Nd3 {[%clk 0:01:38]}  f5 {[%clk 0:02:21]} 32. Nf4 {[%clk 0:01:25]}  h4 {[%clk 0:02:15]} 33. Nd5 {[%clk 0:00:50]}  exd5 {[%clk 0:02:04]} 34. cxd5 {[%clk 0:00:48]}  Ba4+ {[%clk 0:02:04]} 35. Kd2 {[%clk 0:00:46]}  fxe4 {[%clk 0:02:05]} 36. Bxe4 {[%clk 0:00:47]}  Bd6 {[%clk 0:02:05]} 37. Bf5 {[%clk 0:00:39]}  h3 {[%clk 0:02:05]} 38. Kd3 {[%clk 0:00:37]}  h2 {[%clk 0:02:05]} 39. Be4 {[%clk 0:00:37]}  Bb5+ {[%clk 0:02:06]} 40. Kd4 {[%clk 0:00:35]}  Bf1 {[%clk 0:02:06]} 0-1


[Site "https://www.chess.com"]

[Event "Titled Tuesday Blitz March 29 Early 2022"]
[White "Mikhnenko, Alexander"]
[Black "Krysa, Leandro"]
[WhiteFideId "34143014"]
[BlackFideId "116807"]
[WhiteElo "2184"]
[BlackElo "2490"]
[Result "1/2-1/2"]
[Round "06"]
[TimeControl "180+1"]
[Date "2022.03.30"]
[WhiteClock "0:00:11"]
[BlackClock "0:00:08"]

1. e4 {[%clk 0:03:00]}  e5 {[%clk 0:02:59]} 2. Nf3 {[%clk 0:03:00]}  Nf6 {[%clk 0:02:58]} 3. Nxe5 {[%clk 0:02:59]}  d6 {[%clk 0:02:59]} 4. Nf3 {[%clk 0:02:59]}  Nxe4 {[%clk 0:02:59]} 5. d4 {[%clk 0:02:59]}  d5 {[%clk 0:02:59]} 6. Bd3 {[%clk 0:03:00]}  Nc6 {[%clk 0:02:59]} 7. O-O {[%clk 0:03:01]}  Be7 {[%clk 0:02:59]} 8. c4 {[%clk 0:03:01]}  Nb4 {[%clk 0:02:56]} 9. cxd5 {[%clk 0:02:55]}  Nxd3 {[%clk 0:02:52]} 10. Qxd3 {[%clk 0:02:56]}  Qxd5 {[%clk 0:02:49]} 11. Nc3 {[%clk 0:02:38]}  Nxc3 {[%clk 0:02:45]} 12. bxc3 {[%clk 0:02:35]}  O-O {[%clk 0:02:43]} 13. Bf4 {[%clk 0:02:33]}  c6 {[%clk 0:02:40]} 14. Rfe1 {[%clk 0:02:32]}  Bf5 {[%clk 0:02:33]} 15. Qd2 {[%clk 0:02:30]}  Bf6 {[%clk 0:02:32]} 16. Be5 {[%clk 0:02:30]}  Bxe5 {[%clk 0:02:22]} 17. Rxe5 {[%clk 0:02:29]}  Qd7 {[%clk 0:02:23]} 18. Rae1 {[%clk 0:02:27]}  Rfe8 {[%clk 0:02:21]} 19. Qf4 {[%clk 0:02:24]}  Bg6 {[%clk 0:02:09]} 20. h4 {[%clk 0:02:21]}  f6 {[%clk 0:02:03]} 21. Rxe8+ {[%clk 0:02:11]}  Rxe8 {[%clk 0:02:04]} 22. Rxe8+ {[%clk 0:02:11]}  Bxe8 {[%clk 0:02:03]} 23. Qb8 {[%clk 0:02:09]}  a6 {[%clk 0:01:52]} 24. Nd2 {[%clk 0:02:07]}  h6 {[%clk 0:01:50]} 25. Ne4 {[%clk 0:02:05]}  Kh7 {[%clk 0:01:48]} 26. Nc5 {[%clk 0:02:02]}  Qe7 {[%clk 0:01:43]} 27. Nxb7 {[%clk 0:01:58]}  Bh5 {[%clk 0:01:32]} 28. Kh2 {[%clk 0:01:49]}  Qe1 {[%clk 0:01:12]} 29. Qg3 {[%clk 0:01:44]}  Qe6 {[%clk 0:01:02]} 30. Na5 {[%clk 0:01:37]}  Qxa2 {[%clk 0:00:58]} 31. Nxc6 {[%clk 0:01:37]}  Qd5 {[%clk 0:00:55]} 32. Nb4 {[%clk 0:01:37]}  Qc4 {[%clk 0:00:51]} 33. Qd3+ {[%clk 0:01:32]}  Qxd3 {[%clk 0:00:49]} 34. Nxd3 {[%clk 0:01:32]}  a5 {[%clk 0:00:48]} 35. Nb2 {[%clk 0:01:21]}  Be8 {[%clk 0:00:46]} 36. c4 {[%clk 0:01:18]}  a4 {[%clk 0:00:46]} 37. Nd3 {[%clk 0:00:44]}  a3 {[%clk 0:00:45]} 38. Nc1 {[%clk 0:00:44]}  Kg6 {[%clk 0:00:28]} 39. Kg3 {[%clk 0:00:39]}  Kf5 {[%clk 0:00:24]} 40. Kf3 {[%clk 0:00:38]}  Bf7 {[%clk 0:00:25]} 41. d5 {[%clk 0:00:37]}  Ke5 {[%clk 0:00:22]} 42. Ke3 {[%clk 0:00:36]}  Bg6 {[%clk 0:00:23]} 43. f4+ {[%clk 0:00:29]}  Kd6 {[%clk 0:00:23]} 44. Kd4 {[%clk 0:00:29]}  Bb1 {[%clk 0:00:20]} 45. c5+ {[%clk 0:00:29]}  Kc7 {[%clk 0:00:20]} 46. Nb3 {[%clk 0:00:16]}  a2 {[%clk 0:00:16]} 47. Na1 {[%clk 0:00:16]}  Kd7 {[%clk 0:00:08]} 48. g3 {[%clk 0:00:16]}  h5 {[%clk 0:00:08]} 49. Kc4 {[%clk 0:00:13]}  Kc7 {[%clk 0:00:08]} 50. Kd4 {[%clk 0:00:11]}  Kd7 {[%clk 0:00:08]} 51. Nb3 {[%clk 0:00:11]}  Bc2 {[%clk 0:00:07]} 52. Na1 {[%clk 0:00:11]}  Bb1 {[%clk 0:00:08]} 1/2-1/2


[Site "https://www.chess.com"]

[Event "Titled Tuesday Blitz March 29 Early 2022"]
[White "Molina, Roberto Junio Brito"]
[Black "Reprintsev, Alexander"]
[WhiteFideId "2109450"]
[BlackFideId "14100541"]
[WhiteElo "2432"]
[BlackElo "2108"]
[Result "0-1"]
[Round "06"]
[TimeControl "180+1"]
[Date "2022.03.30"]
[WhiteClock "0:00:25"]
[BlackClock "0:00:59"]

1. d4 {[%clk 0:03:00]}  d5 {[%clk 0:02:59]} 2. c4 {[%clk 0:03:01]}  e5 {[%clk 0:02:59]} 3. dxe5 {[%clk 0:03:00]}  d4 {[%clk 0:02:59]} 4. Nf3 {[%clk 0:02:58]}  Nc6 {[%clk 0:02:59]} 5. a3 {[%clk 0:02:58]}  g6 {[%clk 0:02:54]} 6. b4 {[%clk 0:02:56]}  Bg7 {[%clk 0:02:54]} 7. Bb2 {[%clk 0:02:55]}  Nh6 {[%clk 0:02:53]} 8. b5 {[%clk 0:02:46]}  Nxe5 {[%clk 0:02:52]} 9. Nxe5 {[%clk 0:02:47]}  Bxe5 {[%clk 0:02:52]} 10. e3 {[%clk 0:02:48]}  Nf5 {[%clk 0:02:50]} 11. Bd3 {[%clk 0:02:43]}  O-O {[%clk 0:02:39]} 12. O-O {[%clk 0:02:36]}  Qd6 {[%clk 0:02:12]} 13. Bxf5 {[%clk 0:02:36]}  Bxh2+ {[%clk 0:02:11]} 14. Kh1 {[%clk 0:02:36]}  Bxf5 {[%clk 0:02:12]} 15. Qxd4 {[%clk 0:02:17]}  Qxd4 {[%clk 0:02:10]} 16. Bxd4 {[%clk 0:02:18]}  Bd6 {[%clk 0:02:09]} 17. c5 {[%clk 0:02:17]}  Be7 {[%clk 0:02:08]} 18. Nc3 {[%clk 0:02:16]}  b6 {[%clk 0:02:06]} 19. Nd5 {[%clk 0:02:07]}  Bd8 {[%clk 0:02:03]} 20. c6 {[%clk 0:02:01]}  Bd3 {[%clk 0:02:02]} 21. Rfd1 {[%clk 0:01:52]}  Bxb5 {[%clk 0:02:02]} 22. Rac1 {[%clk 0:01:52]}  f6 {[%clk 0:02:00]} 23. e4 {[%clk 0:01:36]}  Kf7 {[%clk 0:02:00]} 24. f3 {[%clk 0:01:35]}  Re8 {[%clk 0:01:59]} 25. Rc3 {[%clk 0:01:30]}  Re6 {[%clk 0:01:57]} 26. Rdc1 {[%clk 0:01:31]}  Rc8 {[%clk 0:01:56]} 27. Kg1 {[%clk 0:01:29]}  Be7 {[%clk 0:01:51]} 28. Kf2 {[%clk 0:01:27]}  Bd6 {[%clk 0:01:51]} 29. g4 {[%clk 0:01:26]}  h5 {[%clk 0:01:40]} 30. gxh5 {[%clk 0:01:26]}  gxh5 {[%clk 0:01:40]} 31. Rh1 {[%clk 0:01:25]}  Rh8 {[%clk 0:01:36]} 32. f4 {[%clk 0:01:13]}  Rxe4 {[%clk 0:01:26]} 33. Bxf6 {[%clk 0:01:12]}  Rh6 {[%clk 0:01:20]} 34. Kf3 {[%clk 0:01:07]}  Rc4 {[%clk 0:01:11]} 35. Be5 {[%clk 0:00:27]}  Rxc3+ {[%clk 0:01:10]} 36. Nxc3 {[%clk 0:00:24]}  Bxc6+ {[%clk 0:01:10]} 37. Ne4 {[%clk 0:00:24]}  Bxe5 {[%clk 0:01:06]} 38. fxe5 {[%clk 0:00:24]}  h4 {[%clk 0:01:01]} 39. Kf4 {[%clk 0:00:24]}  Bxe4 {[%clk 0:01:00]} 40. Kxe4 {[%clk 0:00:25]}  h3 {[%clk 0:00:59]} 0-1


[Site "https://www.chess.com"]

[Event "Titled Tuesday Blitz March 29 Early 2022"]
[White "Mortazavi, Ali"]
[Black "Aditya Mittal"]
[WhiteFideId "401323"]
[BlackFideId "35042025"]
[WhiteElo "2339"]
[BlackElo "2303"]
[Result "1/2-1/2"]
[Round "06"]
[TimeControl "180+1"]
[Date "2022.03.30"]
[WhiteClock "0:00:06"]
[BlackClock "0:00:06"]

1. Nf3 {[%clk 0:03:00]}  d5 {[%clk 0:02:59]} 2. g3 {[%clk 0:03:00]}  c6 {[%clk 0:02:57]} 3. Bg2 {[%clk 0:03:01]}  Bg4 {[%clk 0:02:58]} 4. O-O {[%clk 0:03:01]}  Nd7 {[%clk 0:02:58]} 5. d3 {[%clk 0:03:02]}  Ngf6 {[%clk 0:02:58]} 6. c4 {[%clk 0:03:01]}  Bxf3 {[%clk 0:02:41]} 7. Bxf3 {[%clk 0:02:58]}  Ne5 {[%clk 0:02:40]} 8. Bg2 {[%clk 0:02:57]}  dxc4 {[%clk 0:02:40]} 9. d4 {[%clk 0:02:56]}  Ng6 {[%clk 0:02:38]} 10. f4 {[%clk 0:02:40]}  e6 {[%clk 0:02:34]} 11. e4 {[%clk 0:02:30]}  Qb6 {[%clk 0:02:16]} 12. Nc3 {[%clk 0:02:17]}  O-O-O {[%clk 0:02:14]} 13. Be3 {[%clk 0:02:16]}  e5 {[%clk 0:02:10]} 14. Na4 {[%clk 0:01:54]}  Qb5 {[%clk 0:01:49]} 15. fxe5 {[%clk 0:01:34]}  Nxe5 {[%clk 0:01:22]} 16. Bh3+ {[%clk 0:01:29]}  Kb8 {[%clk 0:01:12]} 17. dxe5 {[%clk 0:01:22]}  Rxd1 {[%clk 0:01:11]} 18. Raxd1 {[%clk 0:01:22]}  Be7 {[%clk 0:00:31]} 19. exf6 {[%clk 0:01:14]}  Bxf6 {[%clk 0:00:32]} 20. Nc5 {[%clk 0:01:07]}  Bxb2 {[%clk 0:00:20]} 21. Rxf7 {[%clk 0:01:05]}  c3 {[%clk 0:00:19]} 22. Rdd7 {[%clk 0:00:52]}  Ka8 {[%clk 0:00:10]} 23. Rxb7 {[%clk 0:00:49]}  Qa5 {[%clk 0:00:09]} 24. Nb3 {[%clk 0:00:38]}  Qxa2 {[%clk 0:00:06]} 25. Rxa7+ {[%clk 0:00:37]}  Qxa7 {[%clk 0:00:07]} 26. Rxa7+ {[%clk 0:00:37]}  Kb8 {[%clk 0:00:08]} 27. Ra2 {[%clk 0:00:22]}  Re8 {[%clk 0:00:06]} 28. Bg2 {[%clk 0:00:20]}  Rd8 {[%clk 0:00:04]} 29. Bf3 {[%clk 0:00:20]}  Rd3 {[%clk 0:00:04]} 30. Kf2 {[%clk 0:00:20]}  Kc8 {[%clk 0:00:01]} 31. Be2 {[%clk 0:00:19]}  Rd8 {[%clk 0:00:01]} 32. Nd4 {[%clk 0:00:17]}  Rf8+ {[%clk 0:00:02]} 33. Ke1 {[%clk 0:00:17]}  Kd7 {[%clk 0:00:03]} 34. Bg4+ {[%clk 0:00:15]}  Kd6 {[%clk 0:00:03]} 35. Nc2 {[%clk 0:00:14]}  Ke5 {[%clk 0:00:03]} 36. Ra4 {[%clk 0:00:12]}  Rd8 {[%clk 0:00:02]} 37. Bd4+ {[%clk 0:00:11]}  Kxe4 {[%clk 0:00:02]} 38. Bxc3+ {[%clk 0:00:10]}  Kd3 {[%clk 0:00:03]} 39. Bxb2 {[%clk 0:00:09]}  Kxc2 {[%clk 0:00:04]} 40. Bd4 {[%clk 0:00:09]}  Re8+ {[%clk 0:00:04]} 41. Be2 {[%clk 0:00:08]}  Kb3 {[%clk 0:00:04]} 42. Rc4 {[%clk 0:00:08]}  Rxe2+ {[%clk 0:00:03]} 43. Kxe2 {[%clk 0:00:08]}  Kxc4 {[%clk 0:00:04]} 44. Bxg7 {[%clk 0:00:09]}  Kd5 {[%clk 0:00:04]} 45. Kd2 {[%clk 0:00:09]}  Ke4 {[%clk 0:00:05]} 46. g4 {[%clk 0:00:08]}  Kf3 {[%clk 0:00:05]} 47. g5 {[%clk 0:00:08]}  Kg4 {[%clk 0:00:04]} 48. Bf6 {[%clk 0:00:08]}  Kh3 {[%clk 0:00:04]} 49. Be5 {[%clk 0:00:08]}  Kg4 {[%clk 0:00:04]} 50. Bf6 {[%clk 0:00:07]}  Kh3 {[%clk 0:00:04]} 51. Ke3 {[%clk 0:00:07]}  Kxh2 {[%clk 0:00:04]} 52. Kd4 {[%clk 0:00:07]}  Kg3 {[%clk 0:00:04]} 53. Kc5 {[%clk 0:00:08]}  Kg4 {[%clk 0:00:04]} 54. Kxc6 {[%clk 0:00:08]}  Kf5 {[%clk 0:00:04]} 55. Kd6 {[%clk 0:00:08]}  Kg6 {[%clk 0:00:05]} 56. Ke5 {[%clk 0:00:07]}  h6 {[%clk 0:00:05]} 57. gxh6 {[%clk 0:00:06]}  Kxh6 {[%clk 0:00:06]} 1/2-1/2


[Site "https://www.chess.com"]

[Event "Titled Tuesday Blitz March 29 Early 2022"]
[White "Muradov, Soltan"]
[Black "Mkrtchyan, Mariam"]
[WhiteFideId "14002108"]
[BlackFideId "13310828"]
[WhiteElo "1854"]
[BlackElo "1984"]
[Result "1/2-1/2"]
[Round "06"]
[TimeControl "180+1"]
[Date "2022.03.30"]
[WhiteClock "0:00:11"]
[BlackClock "0:00:19"]

1. Nf3 {[%clk 0:03:00]}  g6 {[%clk 0:02:59]} 2. g3 {[%clk 0:03:00]}  Bg7 {[%clk 0:02:59]} 3. Bg2 {[%clk 0:03:01]}  d6 {[%clk 0:03:00]} 4. O-O {[%clk 0:03:00]}  Nd7 {[%clk 0:03:00]} 5. c4 {[%clk 0:02:57]}  e5 {[%clk 0:03:01]} 6. d3 {[%clk 0:02:57]}  Ne7 {[%clk 0:03:01]} 7. Nc3 {[%clk 0:02:51]}  O-O {[%clk 0:03:01]} 8. Qc2 {[%clk 0:02:51]}  h6 {[%clk 0:03:01]} 9. b4 {[%clk 0:02:51]}  f5 {[%clk 0:03:02]} 10. Bb2 {[%clk 0:02:51]}  Nf6 {[%clk 0:03:02]} 11. b5 {[%clk 0:02:51]}  Be6 {[%clk 0:02:57]} 12. Nd2 {[%clk 0:02:47]}  c6 {[%clk 0:02:53]} 13. a4 {[%clk 0:02:23]}  Qd7 {[%clk 0:02:50]} 14. a5 {[%clk 0:02:23]}  c5 {[%clk 0:02:36]} 15. a6 {[%clk 0:01:51]}  b6 {[%clk 0:02:36]} 16. Bxa8 {[%clk 0:01:52]}  Rxa8 {[%clk 0:02:36]} 17. e4 {[%clk 0:01:47]}  f4 {[%clk 0:02:31]} 18. Nd5 {[%clk 0:01:38]}  g5 {[%clk 0:02:26]} 19. f3 {[%clk 0:01:27]}  Ng6 {[%clk 0:02:23]} 20. Kf2 {[%clk 0:01:20]}  fxg3+ {[%clk 0:01:48]} 21. hxg3 {[%clk 0:01:20]}  Rf8 {[%clk 0:01:43]} 22. Ke2 {[%clk 0:01:13]}  Nh5 {[%clk 0:01:43]} 23. Rg1 {[%clk 0:01:06]}  Bf6 {[%clk 0:01:35]} 24. Raf1 {[%clk 0:00:52]}  Kh7 {[%clk 0:01:27]} 25. Kd1 {[%clk 0:00:53]}  Bd8 {[%clk 0:01:26]} 26. Kc1 {[%clk 0:00:52]}  Ne7 {[%clk 0:01:01]} 27. Ne3 {[%clk 0:00:50]}  Ng6 {[%clk 0:00:57]} 28. Kb1 {[%clk 0:00:50]}  Rf7 {[%clk 0:00:56]} 29. Bc1 {[%clk 0:00:50]}  Qe7 {[%clk 0:00:52]} 30. Kb2 {[%clk 0:00:44]}  Qf8 {[%clk 0:00:52]} 31. Qd1 {[%clk 0:00:42]}  Nf6 {[%clk 0:00:51]} 32. Nb1 {[%clk 0:00:41]}  Ng8 {[%clk 0:00:49]} 33. Nc3 {[%clk 0:00:41]}  N8e7 {[%clk 0:00:48]} 34. Rh1 {[%clk 0:00:41]}  Ng8 {[%clk 0:00:43]} 35. Ncd5 {[%clk 0:00:36]}  Kg7 {[%clk 0:00:43]} 36. Kb1 {[%clk 0:00:33]}  Kh7 {[%clk 0:00:43]} 37. Ka2 {[%clk 0:00:34]}  Kg7 {[%clk 0:00:43]} 38. Ka3 {[%clk 0:00:34]}  Bc8 {[%clk 0:00:42]} 39. Kb3 {[%clk 0:00:29]}  Be6 {[%clk 0:00:42]} 40. Qe2 {[%clk 0:00:27]}  Qe8 {[%clk 0:00:42]} 41. Qh2 {[%clk 0:00:23]}  Qf8 {[%clk 0:00:41]} 42. Qg2 {[%clk 0:00:21]}  Bd7 {[%clk 0:00:40]} 43. Bd2 {[%clk 0:00:20]}  Bc8 {[%clk 0:00:39]} 44. Kc2 {[%clk 0:00:21]}  Bd7 {[%clk 0:00:38]} 45. Kb1 {[%clk 0:00:21]}  Qe8 {[%clk 0:00:38]} 46. Kb2 {[%clk 0:00:22]}  Be6 {[%clk 0:00:37]} 47. Kc2 {[%clk 0:00:22]}  Qf8 {[%clk 0:00:37]} 48. Nc3 {[%clk 0:00:20]}  Qe8 {[%clk 0:00:34]} 49. Kc1 {[%clk 0:00:07]}  Qf8 {[%clk 0:00:34]} 50. Kb2 {[%clk 0:00:07]}  Bf6 {[%clk 0:00:34]} 51. Nf5+ {[%clk 0:00:07]}  Kh7 {[%clk 0:00:22]} 52. Nd5 {[%clk 0:00:04]}  Bg7 {[%clk 0:00:22]} 53. Qh2 {[%clk 0:00:02]}  Bxf5 {[%clk 0:00:20]} 54. exf5 {[%clk 0:00:03]}  Rxf5 {[%clk 0:00:20]} 55. Qg2 {[%clk 0:00:03]}  N6e7 {[%clk 0:00:18]} 56. Nxe7 {[%clk 0:00:01]}  Qxe7 {[%clk 0:00:18]} 57. Kc2 {[%clk 0:00:02]}  Qf7 {[%clk 0:00:18]} 58. Rh2 {[%clk 0:00:03]}  Rf6 {[%clk 0:00:17]} 59. Rhh1 {[%clk 0:00:03]}  Qg6 {[%clk 0:00:18]} 60. Qe2 {[%clk 0:00:04]}  Bf8 {[%clk 0:00:17]} 61. Qe4 {[%clk 0:00:05]}  Qxe4 {[%clk 0:00:14]} 62. fxe4 {[%clk 0:00:06]}  Kg7 {[%clk 0:00:14]} 63. Rxf6 {[%clk 0:00:05]}  Nxf6 {[%clk 0:00:15]} 64. Be3 {[%clk 0:00:06]}  Be7 {[%clk 0:00:15]} 65. Kd2 {[%clk 0:00:06]}  Bd8 {[%clk 0:00:15]} 66. Ke2 {[%clk 0:00:07]}  Kg6 {[%clk 0:00:16]} 67. Bd2 {[%clk 0:00:07]}  Ng4 {[%clk 0:00:16]} 68. Kf3 {[%clk 0:00:07]}  Nf6 {[%clk 0:00:16]} 69. g4 {[%clk 0:00:06]}  Be7 {[%clk 0:00:16]} 70. Kg3 {[%clk 0:00:07]}  Bf8 {[%clk 0:00:16]} 71. Rf1 {[%clk 0:00:08]}  Be7 {[%clk 0:00:17]} 72. Rf5 {[%clk 0:00:08]}  Bd8 {[%clk 0:00:17]} 73. Be3 {[%clk 0:00:09]}  Be7 {[%clk 0:00:17]} 74. Bd2 {[%clk 0:00:09]}  Bd8 {[%clk 0:00:17]} 75. Bc3 {[%clk 0:00:10]}  Nd7 {[%clk 0:00:17]} 76. Bb2 {[%clk 0:00:08]}  Bf6 {[%clk 0:00:17]} 77. Kf3 {[%clk 0:00:08]}  Be7 {[%clk 0:00:17]} 78. Kg3 {[%clk 0:00:08]}  Bf6 {[%clk 0:00:18]} 79. Rf1 {[%clk 0:00:09]}  Nf8 {[%clk 0:00:16]} 80. Bc3 {[%clk 0:00:10]}  Nd7 {[%clk 0:00:16]} 81. Bd2 {[%clk 0:00:07]}  Nf8 {[%clk 0:00:16]} 82. Be3 {[%clk 0:00:08]}  Ne6 {[%clk 0:00:17]} 83. Rg1 {[%clk 0:00:09]}  Bd8 {[%clk 0:00:17]} 84. Rf1 {[%clk 0:00:09]}  Bf6 {[%clk 0:00:17]} 85. Rf2 {[%clk 0:00:09]}  Be7 {[%clk 0:00:17]} 86. Kg2 {[%clk 0:00:10]}  Bf6 {[%clk 0:00:17]} 87. Kg3 {[%clk 0:00:10]}  Kg7 {[%clk 0:00:18]} 88. Rf1 {[%clk 0:00:11]}  Kg6 {[%clk 0:00:19]} 1/2-1/2


[Site "https://www.chess.com"]

[Event "Titled Tuesday Blitz March 29 Early 2022"]
[White "Nozdrachev, Leonid"]
[Black "Vysochin, Spartak"]
[WhiteFideId "24113433"]
[BlackFideId "14103516"]
[WhiteElo "2118"]
[BlackElo "2385"]
[Result "1/2-1/2"]
[Round "06"]
[TimeControl "180+1"]
[Date "2022.03.30"]
[WhiteClock "0:00:15"]
[BlackClock "0:00:39"]

1. e4 {[%clk 0:03:00]}  e6 {[%clk 0:02:55]} 2. d4 {[%clk 0:02:57]}  d5 {[%clk 0:02:54]} 3. exd5 {[%clk 0:02:57]}  exd5 {[%clk 0:02:54]} 4. c4 {[%clk 0:02:55]}  Nf6 {[%clk 0:02:54]} 5. Nc3 {[%clk 0:02:53]}  Bb4 {[%clk 0:02:54]} 6. Bd3 {[%clk 0:02:50]}  O-O {[%clk 0:02:53]} 7. Ne2 {[%clk 0:02:49]}  dxc4 {[%clk 0:02:49]} 8. Bxc4 {[%clk 0:02:50]}  Nc6 {[%clk 0:02:49]} 9. O-O {[%clk 0:02:49]}  h6 {[%clk 0:02:43]} 10. Bf4 {[%clk 0:02:47]}  Bd6 {[%clk 0:02:40]} 11. Qd2 {[%clk 0:02:37]}  Bf5 {[%clk 0:02:26]} 12. Rad1 {[%clk 0:02:35]}  a6 {[%clk 0:02:24]} 13. h3 {[%clk 0:02:33]}  Qd7 {[%clk 0:02:22]} 14. Rfe1 {[%clk 0:02:32]}  Rad8 {[%clk 0:02:18]} 15. Bxh6 {[%clk 0:02:30]}  gxh6 {[%clk 0:02:16]} 16. Qxh6 {[%clk 0:02:31]}  Nh7 {[%clk 0:02:08]} 17. g4 {[%clk 0:02:07]}  Bc2 {[%clk 0:01:28]} 18. Rd2 {[%clk 0:02:07]}  Na5 {[%clk 0:01:28]} 19. Bd5 {[%clk 0:02:02]}  c6 {[%clk 0:01:28]} 20. Rxc2 {[%clk 0:01:49]}  cxd5 {[%clk 0:01:27]} 21. Nxd5 {[%clk 0:01:50]}  Bh2+ {[%clk 0:01:24]} 22. Kxh2 {[%clk 0:01:49]}  Qxd5 {[%clk 0:01:24]} 23. Rc5 {[%clk 0:01:44]}  Qf3 {[%clk 0:01:24]} 24. Rf5 {[%clk 0:01:31]}  Qe4 {[%clk 0:01:12]} 25. Nf4 {[%clk 0:01:02]}  Qxd4 {[%clk 0:00:58]} 26. Ree5 {[%clk 0:00:51]}  Rd6 {[%clk 0:00:47]} 27. Rg5+ {[%clk 0:00:34]}  Rg6 {[%clk 0:00:42]} 28. Nxg6 {[%clk 0:00:15]}  Qxf2+ {[%clk 0:00:40]} 29. Kh1 {[%clk 0:00:15]}  Qf1+ {[%clk 0:00:40]} 30. Kh2 {[%clk 0:00:15]}  Qf2+ {[%clk 0:00:40]} 31. Kh1 {[%clk 0:00:15]}  Qf1+ {[%clk 0:00:39]} 32. Kh2 {[%clk 0:00:15]}  Qf2+ {[%clk 0:00:39]} 1/2-1/2


[Site "https://www.chess.com"]

[Event "Titled Tuesday Blitz March 29 Early 2022"]
[White "Oganian, Miran"]
[Black "Jumabayev, Rinat"]
[WhiteFideId "4122488"]
[BlackFideId "13702661"]
[WhiteElo "2357"]
[BlackElo "2561"]
[Result "1-0"]
[Round "06"]
[TimeControl "180+1"]
[Date "2022.03.29"]
[WhiteClock "0:00:09"]
[BlackClock "0:00:03"]

1. e4 {[%clk 0:02:57]}  e6 {[%clk 0:03:00]} 2. d4 {[%clk 0:02:57]}  d5 {[%clk 0:03:00]} 3. Nc3 {[%clk 0:02:56]}  Nf6 {[%clk 0:03:01]} 4. e5 {[%clk 0:02:56]}  Nfd7 {[%clk 0:03:01]} 5. f4 {[%clk 0:02:57]}  c5 {[%clk 0:03:01]} 6. Nf3 {[%clk 0:02:58]}  Nc6 {[%clk 0:03:02]} 7. Be3 {[%clk 0:02:58]}  a6 {[%clk 0:03:02]} 8. Qd2 {[%clk 0:02:58]}  b5 {[%clk 0:03:02]} 9. Be2 {[%clk 0:02:59]}  Be7 {[%clk 0:02:58]} 10. Nd1 {[%clk 0:02:59]}  b4 {[%clk 0:02:58]} 11. Nf2 {[%clk 0:02:59]}  a5 {[%clk 0:02:54]} 12. O-O {[%clk 0:02:58]}  O-O {[%clk 0:02:54]} 13. c3 {[%clk 0:02:35]}  Ba6 {[%clk 0:02:45]} 14. Kh1 {[%clk 0:02:32]}  bxc3 {[%clk 0:02:19]} 15. bxc3 {[%clk 0:02:32]}  a4 {[%clk 0:02:18]} 16. Bxa6 {[%clk 0:02:23]}  Rxa6 {[%clk 0:02:18]} 17. g4 {[%clk 0:02:24]}  Nb6 {[%clk 0:02:14]} 18. f5 {[%clk 0:02:20]}  Nc4 {[%clk 0:02:11]} 19. Qe2 {[%clk 0:02:21]}  cxd4 {[%clk 0:02:01]} 20. cxd4 {[%clk 0:02:19]}  f6 {[%clk 0:02:01]} 21. Nd3 {[%clk 0:02:09]}  fxe5 {[%clk 0:01:44]} 22. Nfxe5 {[%clk 0:02:07]}  exf5 {[%clk 0:01:42]} 23. gxf5 {[%clk 0:01:56]}  N6a5 {[%clk 0:01:39]} 24. Rf3 {[%clk 0:01:29]}  Raf6 {[%clk 0:01:30]} 25. Raf1 {[%clk 0:01:26]}  Qc8 {[%clk 0:01:30]} 26. Bg5 {[%clk 0:01:20]}  Nd6 {[%clk 0:01:08]} 27. Bxf6 {[%clk 0:01:19]}  Bxf6 {[%clk 0:01:07]} 28. Nf4 {[%clk 0:01:13]}  Qb7 {[%clk 0:00:48]} 29. Nh5 {[%clk 0:01:05]}  Ne4 {[%clk 0:00:42]} 30. Rg1 {[%clk 0:01:01]}  Nc4 {[%clk 0:00:35]} 31. Qg2 {[%clk 0:00:37]}  Bxe5 {[%clk 0:00:20]} 32. dxe5 {[%clk 0:00:29]}  Nxe5 {[%clk 0:00:20]} 33. Rf4 {[%clk 0:00:21]}  Rf7 {[%clk 0:00:17]} 34. h3 {[%clk 0:00:15]}  Nd3 {[%clk 0:00:16]} 35. Rf3 {[%clk 0:00:12]}  Ne5 {[%clk 0:00:15]} 36. Rf4 {[%clk 0:00:13]}  Kh8 {[%clk 0:00:13]} 37. Ng3 {[%clk 0:00:08]}  Nf6 {[%clk 0:00:09]} 38. Rff1 {[%clk 0:00:07]}  Re7 {[%clk 0:00:08]} 39. Re1 {[%clk 0:00:08]}  h6 {[%clk 0:00:07]} 40. Kh2 {[%clk 0:00:07]}  Qc7 {[%clk 0:00:07]} 41. Kh1 {[%clk 0:00:08]}  Qc3 {[%clk 0:00:07]} 42. Re2 {[%clk 0:00:08]}  d4 {[%clk 0:00:07]} 43. Ne4 {[%clk 0:00:08]}  Nxe4 {[%clk 0:00:06]} 44. Rxe4 {[%clk 0:00:09]}  Qc6 {[%clk 0:00:04]} 45. Rxd4 {[%clk 0:00:07]}  Qxg2+ {[%clk 0:00:04]} 46. Rxg2 {[%clk 0:00:08]}  Nf3 {[%clk 0:00:05]} 47. Rd8+ {[%clk 0:00:07]}  Kh7 {[%clk 0:00:05]} 48. Rf2 {[%clk 0:00:08]}  Nh4 {[%clk 0:00:05]} 49. Kh2 {[%clk 0:00:07]}  Rf7 {[%clk 0:00:04]} 50. Rd4 {[%clk 0:00:06]}  a3 {[%clk 0:00:03]} 51. Rxh4 {[%clk 0:00:06]}  Ra7 {[%clk 0:00:03]} 52. Rg4 {[%clk 0:00:07]}  Ra6 {[%clk 0:00:03]} 53. Rg3 {[%clk 0:00:07]}  Ra5 {[%clk 0:00:03]} 54. f6 {[%clk 0:00:08]}  gxf6 {[%clk 0:00:03]} 55. Rxf6 {[%clk 0:00:09]} 1-0


[Site "https://www.chess.com"]